[Event "FIDE Women World Blitz 2021"]
[Site "Warsaw"]
[Date "2021.12.29"]
[Round "5.14"]
[White "Efroimski, Marsel"]
[Black "Dzagnidze, Nana"]
[Result "1-0"]
[ECO "B51"]
[WhiteElo "2419"]
[BlackElo "2524"]
[Annotator "ChessBase"]
[PlyCount "131"]
[EventDate "2021.12.29"]
[EventType "swiss"]
[EventCountry "POL"]
[Tiebreak "Cut1 Buchholz"]
[SourceTitle "playchess.com"]
[Source "ChessBase"]
[SourceQuality "1"]
[TimeControl "180+2"]

1. e4 {[%emt 0:00:00]} c5 {[%emt 0:00:02]} 2. Nf3 {[%emt 0:00:01]} d6 {[%emt 0:
00:03]} 3. Bb5+ {[%emt 0:00:01]} Nd7 {[%emt 0:00:02]} 4. d4 {[%emt 0:00:01]}
cxd4 {[%emt 0:00:03]} 5. Qxd4 {[%emt 0:00:01]} a6 {[%emt 0:00:03]} 6. Be2 {
[%emt 0:00:01]} Ngf6 {[%emt 0:00:04]} 7. O-O {[%emt 0:00:02]} e6 {[%emt 0:00:
11]} 8. c4 {[%emt 0:00:02]} Be7 {[%emt 0:00:03]} 9. Nc3 {[%emt 0:00:01]} O-O {
[%emt 0:00:01]} 10. h3 {[%emt 0:00:14]} Qc7 {[%emt 0:00:02]} 11. Be3 {[%emt 0:
00:03]} b6 {[%emt 0:00:04]} 12. Rac1 {[%emt 0:00:06]} Bb7 {[%emt 0:00:02]} 13.
b4 {[%emt 0:00:19]} Rac8 {[%emt 0:00:15]} 14. a3 {[%emt 0:00:17]} Qb8 {[%emt 0:
00:07]} 15. Nd2 {[%emt 0:00:02]} Qa8 {[%emt 0:00:13]} 16. Qd3 {[%emt 0:00:08]}
Ne5 {[%emt 0:00:37]} 17. Qb1 {[%emt 0:00:03]} d5 {[%emt 0:00:16]} 18. Na4 {
[%emt 0:01:01]} Ned7 {[%emt 0:00:29]} 19. cxd5 {[%emt 0:00:04]} exd5 {[%emt 0:
00:02]} 20. Nxb6 {[%emt 0:00:04]} Nxb6 {[%emt 0:00:01]} 21. Bxb6 {[%emt 0:00:
01]} dxe4 {[%emt 0:00:03]} 22. Nc4 {[%emt 0:00:31]} Nd5 {[%emt 0:00:05]} 23.
Be3 {[%emt 0:00:02]} Nxe3 {[%emt 0:00:09]} 24. Nxe3 {[%emt 0:00:01]} Bf6 {
[%emt 0:00:32]} 25. Rxc8 {[%emt 0:00:02]} Rxc8 {[%emt 0:00:03]} 26. Rc1 {
[%emt 0:00:01]} g6 {[%emt 0:00:06]} 27. Rxc8+ Qxc8 {[%emt 0:00:00]} 28. Qc2 {
[%emt 0:00:13]} Qd7 {[%emt 0:00:05]} 29. Qd1 {[%emt 0:00:08]} Qe6 {[%emt 0:00:
03]} 30. Bc4 {[%emt 0:00:04]} Qe7 {[%emt 0:00:05]} 31. Bd5 {[%emt 0:00:02]} Bg5
{[%emt 0:00:08]} 32. Bxb7 {[%emt 0:00:03]} Qxb7 {[%emt 0:00:00]} 33. Qd5 {
[%emt 0:00:02]} Qxd5 {[%emt 0:00:02]} 34. Nxd5 {[%emt 0:00:00]} Bd8 {[%emt 0:
00:02]} 35. a4 {[%emt 0:00:04]} f5 {[%emt 0:00:03]} 36. b5 {[%emt 0:00:00]}
axb5 {[%emt 0:00:02]} 37. axb5 {[%emt 0:00:01]} Ba5 {[%emt 0:00:05]} 38. b6 {
[%emt 0:00:02]} Bxb6 {[%emt 0:00:02]} 39. Nxb6 {[%emt 0:00:01]} Kf7 {[%emt 0:
00:01]} 40. Kf1 {[%emt 0:00:01]} Ke6 {[%emt 0:00:00]} 41. Ke2 {[%emt 0:00:01]}
f4 {[%emt 0:00:02]} 42. Nc4 {[%emt 0:00:01]} Kd5 {[%emt 0:00:01]} 43. Nd2 {
[%emt 0:00:02]} Kd4 {[%emt 0:00:01]} 44. Nb3+ {[%emt 0:00:01]} Kc4 {[%emt 0:00:
00]} 45. Na5+ {[%emt 0:00:01]} Kd5 {[%emt 0:00:01]} 46. Nb3 {[%emt 0:00:02]} g5
{[%emt 0:00:01]} 47. Nd2 {[%emt 0:00:01]} Kd4 {[%emt 0:00:01]} 48. Nf1 {
[%emt 0:00:02]} h5 {[%emt 0:00:04]} 49. g3 {[%emt 0:00:03]} Ke5 {[%emt 0:00:02]
} 50. Nd2 {[%emt 0:00:04]} Kd4 {[%emt 0:00:04]} 51. Nb3+ {[%emt 0:00:01]} Kc4 {
[%emt 0:00:01]} 52. Na5+ {[%emt 0:00:01]} Kd5 {[%emt 0:00:00]} 53. Nb3 {
[%emt 0:00:06]} Kc4 {[%emt 0:00:02]} 54. Nd2+ {[%emt 0:00:01]} Kd4 {[%emt 0:00:
00]} 55. Nf1 {[%emt 0:00:01]} Ke5 {[%emt 0:00:02]} 56. h4 {[%emt 0:00:26]} gxh4
{[%emt 0:00:10]} 57. gxh4 {[%emt 0:00:02]} Kf5 {[%emt 0:00:01]} 58. Nh2 {
[%emt 0:00:01]} Ke5 {[%emt 0:00:01]} 59. Nf1 {[%emt 0:00:06]} Kf5 {[%emt 0:00:
04]} 60. Nd2 {[%emt 0:00:00]} Ke5 {[%emt 0:00:01]} 61. f3 {[%emt 0:00:04]} e3 {
[%emt 0:00:03]} 62. Ne4 {[%emt 0:00:02]} Kf5 {[%emt 0:00:03]} 63. Nc5 {[%emt 0:
00:00]} Ke5 {[%emt 0:00:01]} 64. Nd3+ {[%emt 0:00:02]} Kf5 {[%emt 0:00:01]} 65.
Kf1 {[%emt 0:00:01]} Kf6 {[%emt 0:00:04]} 66. Nxf4 {[%emt 0:00:01]} 1-0

[Event "FIDE Women World Blitz 2021"]
[Site "Warsaw"]
[Date "2021.12.29"]
[Round "5.15"]
[White "Babiy, Olga"]
[Black "Injac, Teodora"]
[Result "1-0"]
[ECO "D02"]
[WhiteElo "2179"]
[BlackElo "2387"]
[Annotator "NA"]
[PlyCount "151"]
[EventDate "2021.12.29"]
[EventType "swiss"]
[EventCountry "POL"]
[Tiebreak "Cut1 Buchholz"]
[SourceTitle "playchess.com"]
[Source "ChessBase"]
[SourceQuality "1"]
[TimeControl "180+2"]

1. d4 {[%emt 0:00:00]} Nf6 {[%emt 0:00:02]} 2. Nf3 {[%emt 0:00:00]} g6 {
[%emt 0:00:01]} 3. Nbd2 {[%emt 0:00:01]} d5 {[%emt 0:00:02]} 4. e3 {[%emt 0:00:
01]} Bg7 {[%emt 0:00:01]} 5. b4 {[%emt 0:00:00]} a5 {[%emt 0:00:01]} 6. b5 {
[%emt 0:00:04]} c5 {[%emt 0:00:00]} 7. bxc6 {[%emt 0:00:10]} Nxc6 {[%emt 0:00:
01]} 8. a4 {[%emt 0:00:05]} O-O {[%emt 0:00:03]} 9. Ba3 {[%emt 0:00:02]} Re8 {
[%emt 0:00:01]} 10. Bb5 {[%emt 0:00:05]} Bf5 {[%emt 0:00:06]} 11. c3 {[%emt 0:
00:05]} Rc8 {[%emt 0:00:03]} 12. O-O {[%emt 0:00:03]} Ne4 {[%emt 0:00:03]} 13.
Nxe4 {[%emt 0:00:06]} Bxe4 {[%emt 0:00:02]} 14. Nd2 {[%emt 0:00:01]} Bf5 {
[%emt 0:00:01]} 15. Qb3 {[%emt 0:00:06]} e5 {[%emt 0:00:15]} 16. Rac1 {[%emt 0:
00:04]} h5 {[%emt 0:00:02]} 17. h3 {[%emt 0:00:04]} h4 {[%emt 0:00:05]} 18.
Rfd1 {[%emt 0:00:04]} g5 {[%emt 0:00:16]} 19. dxe5 {[%emt 0:00:05]} Be6 {
[%emt 0:00:21]} 20. Nf3 {[%emt 0:00:06]} g4 {[%emt 0:00:59]} 21. hxg4 {[%emt 0:
00:01]} Bxg4 {[%emt 0:00:03]} 22. Rxd5 {[%emt 0:00:06]} Qc7 {[%emt 0:00:00]}
23. Bd6 {[%emt 0:00:02]} Qd7 {[%emt 0:00:07]} 24. Nxh4 {[%emt 0:00:04]} Be6 {
[%emt 0:00:01]} 25. c4 {[%emt 0:00:13]} Qd8 {[%emt 0:00:03]} 26. Nf3 {[%emt 0:
00:02]} Nxe5 {[%emt 0:00:55]} 27. Bxe5 {[%emt 0:00:44]} Bxd5 {[%emt 0:00:01]}
28. Bxe8 {[%emt 0:00:33]} Bxf3 {[%emt 0:00:06]} 29. gxf3 {[%emt 0:00:04]} Bxe5
{[%emt 0:00:02]} 30. Bb5 {[%emt 0:00:07]} Qh4 {[%emt 0:00:06]} 31. f4 {[%emt 0:
00:04]} Qg4+ {[%emt 0:00:01]} 32. Kf1 {[%emt 0:00:02]} Bf6 {[%emt 0:00:04]} 33.
Qd1 {[%emt 0:00:02]} Qh3+ {[%emt 0:00:02]} 34. Ke2 {[%emt 0:00:01]} Rd8 {
[%emt 0:00:01]} 35. Qg1+ {[%emt 0:00:02]} Kf8 {[%emt 0:00:01]} 36. Rd1 {
[%emt 0:00:20]} Qh5+ {[%emt 0:00:00]} 37. f3 {[%emt 0:00:01]} Rxd1 {[%emt 0:00:
07]} 38. Qxd1 {[%emt 0:00:01]} Qh2+ {[%emt 0:00:00]} 39. Kd3 {[%emt 0:00:02]}
Qb2 {[%emt 0:00:02]} 40. Qc2 {[%emt 0:00:07]} Qa1 {[%emt 0:00:01]} 41. Ke4 {
[%emt 0:00:05]} Qa3 {[%emt 0:00:06]} 42. c5 {[%emt 0:00:05]} Qb4+ {[%emt 0:00:
06]} 43. Qc4 {[%emt 0:00:03]} Qb1+ {[%emt 0:00:01]} 44. Qd3 {[%emt 0:00:02]}
Qb4+ {[%emt 0:00:01]} 45. Qc4 {[%emt 0:00:01]} Qb1+ {[%emt 0:00:01]} 46. Kd5 {
[%emt 0:00:03]} Qf5+ {[%emt 0:00:01]} 47. Kd6 {[%emt 0:00:01]} Qc8 {[%emt 0:00:
05]} 48. Qe4 {[%emt 0:00:08]} Qd8+ {[%emt 0:00:01]} 49. Bd7 {[%emt 0:00:02]}
Qb8+ {[%emt 0:00:03]} 50. Kd5 {[%emt 0:00:01]} Qd8 {[%emt 0:00:02]} 51. c6 {
[%emt 0:00:05]} bxc6+ {[%emt 0:00:02]} 52. Kxc6 {[%emt 0:00:01]} Qa8+ {[%emt 0:
00:00]} 53. Kb5 {[%emt 0:00:02]} Qa7 {[%emt 0:00:05]} 54. Bc6 {[%emt 0:00:03]}
Be7 {[%emt 0:00:02]} 55. Qd5 {[%emt 0:00:01]} Qxe3 {[%emt 0:00:01]} 56. Kxa5 {
[%emt 0:00:02]} Qe1+ {[%emt 0:00:02]} 57. Kb5 {[%emt 0:00:04]} Qb1+ {[%emt 0:
00:01]} 58. Ka6 {[%emt 0:00:02]} Qb8 {[%emt 0:00:04]} 59. a5 {[%emt 0:00:05]}
Qxf4 {[%emt 0:00:02]} 60. Kb7 {[%emt 0:00:05]} Qb4+ {[%emt 0:00:01]} 61. Qb5 {
[%emt 0:00:01]} Qd6 {[%emt 0:00:03]} 62. a6 {[%emt 0:00:03]} Bd8 {[%emt 0:00:
02]} 63. a7 {[%emt 0:00:03]} Qc7+ {[%emt 0:00:01]} 64. Ka6 {[%emt 0:00:01]}
Qc8+ {[%emt 0:00:06]} 65. Bb7 {[%emt 0:00:04]} Qe6+ {[%emt 0:00:00]} 66. Bc6 {
[%emt 0:00:01]} Qc8+ {[%emt 0:00:01]} 67. Bb7 {[%emt 0:00:01]} Qe6+ {[%emt 0:
00:00]} 68. Bc6 {[%emt 0:00:01]} Qc8+ {[%emt 0:00:01]} 69. Qb7 {[%emt 0:00:02]}
Qf5 {[%emt 0:00:02]} 70. Qb4+ {[%emt 0:00:06]} Be7 {[%emt 0:00:04]} 71. Qb8+ {
[%emt 0:00:02]} Kg7 {[%emt 0:00:01]} 72. a8=Q {[%emt 0:00:04]} Qh7 {[%emt 0:00:
06]} 73. Qb2+ {[%emt 0:00:04]} Bf6 {[%emt 0:00:02]} 74. Qb3 {[%emt 0:00:01]}
Qf5 {[%emt 0:00:02]} 75. Qab8 {[%emt 0:00:01]} Qh3 {[%emt 0:00:04]} 76. Q8b4 {
[%emt 0:00:01]} 1-0

[Event "FIDE Women World Blitz 2021"]
[Site "Warsaw"]
[Date "2021.12.29"]
[Round "5.16"]
[White "Danielian, Elina"]
[Black "Pavlidou, Ekaterini"]
[Result "1/2-1/2"]
[ECO "A45"]
[WhiteElo "2450"]
[BlackElo "2177"]
[Annotator "ChessBase"]
[PlyCount "138"]
[EventDate "2021.12.29"]
[EventType "swiss"]
[EventCountry "POL"]
[Tiebreak "Cut1 Buchholz"]
[SourceTitle "playchess.com"]
[Source "ChessBase"]
[SourceQuality "1"]
[TimeControl "180+2"]

1. d4 {[%emt 0:00:02]} Nf6 {[%emt 0:00:01]} 2. Bg5 {[%emt 0:00:01]} Ne4 {
[%emt 0:00:04]} 3. Bf4 {[%emt 0:00:01]} c5 {[%emt 0:00:11]} 4. f3 {[%emt 0:00:
02]} Nf6 {[%emt 0:00:10]} 5. dxc5 {[%emt 0:00:08]} Qa5+ {[%emt 0:00:05]} 6. Nc3
{[%emt 0:00:02]} e6 {[%emt 0:00:14]} 7. a3 {[%emt 0:00:48]} Qxc5 {[%emt 0:00:
08]} 8. e4 {[%emt 0:00:04]} Be7 {[%emt 0:00:32]} 9. Qd2 {[%emt 0:00:05]} O-O {
[%emt 0:00:11]} 10. Bd3 {[%emt 0:00:22]} d5 {[%emt 0:00:13]} 11. Nge2 {[%emt 0:
01:03]} dxe4 {[%emt 0:00:21]} 12. Nxe4 {[%emt 0:00:02]} Nxe4 {[%emt 0:00:01]}
13. Bxe4 {[%emt 0:00:01]} Rd8 {[%emt 0:00:15]} 14. Qc3 {[%emt 0:00:23]} Qxc3+ {
[%emt 0:00:04]} 15. Nxc3 {[%emt 0:00:01]} f5 {[%emt 0:00:09]} 16. Bd3 {[%emt 0:
00:02]} Nc6 {[%emt 0:00:01]} 17. O-O-O {[%emt 0:00:09]} e5 {[%emt 0:00:03]} 18.
Bc4+ {[%emt 0:00:01]} Kh8 {[%emt 0:00:06]} 19. Rxd8+ {[%emt 0:00:03]} Bxd8 {
[%emt 0:00:01]} 20. Bg3 {[%emt 0:00:02]} a6 {[%emt 0:00:09]} 21. Rd1 {[%emt 0:
00:02]} Bg5+ {[%emt 0:00:11]} 22. Kb1 {[%emt 0:00:01]} Bf6 {[%emt 0:00:11]} 23.
Nd5 {[%emt 0:00:01]} f4 {[%emt 0:00:05]} 24. Bf2 {[%emt 0:00:07]} Bf5 {[%emt 0:
00:02]} 25. Nxf6 {[%emt 0:00:04]} gxf6 {[%emt 0:00:01]} 26. g3 {[%emt 0:00:06]}
fxg3 {[%emt 0:00:01]} 27. hxg3 {[%emt 0:00:01]} Rd8 {[%emt 0:00:03]} 28. Rxd8+
{[%emt 0:00:01]} Nxd8 {[%emt 0:00:01]} 29. b4 {[%emt 0:00:02]} Kg7 {[%emt 0:00:
01]} 30. Kb2 {[%emt 0:00:01]} Be6 {[%emt 0:00:05]} 31. Bd3 {[%emt 0:00:01]} f5
{[%emt 0:00:03]} 32. c4 {[%emt 0:00:01]} Kf6 {[%emt 0:00:02]} 33. Kc3 {[%emt 0:
00:02]} Nf7 {[%emt 0:00:02]} 34. c5 {[%emt 0:00:02]} Bd5 {[%emt 0:00:01]} 35.
Be2 {[%emt 0:00:07]} Ng5 {[%emt 0:00:01]} 36. g4 {[%emt 0:00:05]} Bxf3 {
[%emt 0:00:08]} 37. Bxf3 {[%emt 0:00:02]} Nxf3 {[%emt 0:00:01]} 38. gxf5 {
[%emt 0:00:01]} Kxf5 {[%emt 0:00:01]} 39. a4 {[%emt 0:00:01]} h5 {[%emt 0:00:
04]} 40. b5 {[%emt 0:00:02]} axb5 41. axb5 {[%emt 0:00:01]} h4 {[%emt 0:00:11]}
42. c6 {[%emt 0:00:01]} bxc6 {[%emt 0:00:00]} 43. b6 {[%emt 0:00:03]} h3 {
[%emt 0:00:03]} 44. b7 {[%emt 0:00:05]} h2 {[%emt 0:00:02]} 45. b8=Q {[%emt 0:
00:01]} h1=Q {[%emt 0:00:01]} 46. Qc8+ {[%emt 0:00:02]} Kf4 {[%emt 0:00:04]}
47. Qf8+ {[%emt 0:00:02]} Kg4 {[%emt 0:00:04]} 48. Qg7+ {[%emt 0:00:02]} Kf5 {
[%emt 0:00:02]} 49. Qf7+ {[%emt 0:00:01]} Kg4 {[%emt 0:00:06]} 50. Qe6+ {
[%emt 0:00:01]} Kf4 {[%emt 0:00:02]} 51. Qf6+ {[%emt 0:00:01]} Ke4 {[%emt 0:00:
03]} 52. Qxc6+ {[%emt 0:00:01]} Kf5 {[%emt 0:00:01]} 53. Qd7+ {[%emt 0:00:01]}
Kg6 {[%emt 0:00:01]} 54. Qe8+ {[%emt 0:00:01]} Kf5 {[%emt 0:00:01]} 55. Qf7+ {
[%emt 0:00:02]} Ke4 {[%emt 0:00:01]} 56. Qg6+ {[%emt 0:00:06]} Kd5 {[%emt 0:00:
01]} 57. Qf7+ {[%emt 0:00:02]} Kc6 {[%emt 0:00:01]} 58. Qe6+ {[%emt 0:00:03]}
Kb7 {[%emt 0:00:04]} 59. Qd7+ {[%emt 0:00:02]} Kb8 {[%emt 0:00:02]} 60. Qd8+ {
[%emt 0:00:04]} Kb7 {[%emt 0:00:00]} 61. Qd7+ {[%emt 0:00:02]} Kb8 {[%emt 0:00:
01]} 62. Qa7+ {[%emt 0:00:03]} Kc8 {[%emt 0:00:00]} 63. Qa8+ {[%emt 0:00:01]}
Kd7 {[%emt 0:00:01]} 64. Qd5+ {[%emt 0:00:01]} Kc8 {[%emt 0:00:01]} 65. Qc6+ {
[%emt 0:00:03]} Kb8 {[%emt 0:00:01]} 66. Qd6+ {[%emt 0:00:04]} Kc8 {[%emt 0:00:
03]} 67. Qc6+ {[%emt 0:00:02]} Kb8 {[%emt 0:00:01]} 68. Qe8+ {[%emt 0:00:01]}
Kb7 {[%emt 0:00:01]} 69. Qd7+ {[%emt 0:00:01]} Kb8 {[%emt 0:00:01]} 1/2-1/2

[Event "FIDE Women World Blitz 2021"]
[Site "Warsaw"]
[Date "2021.12.29"]
[Round "5.17"]
[White "Antolak, Julia"]
[Black "Garifullina, Leya"]
[Result "1-0"]
[ECO "B20"]
[WhiteElo "2334"]
[BlackElo "2416"]
[Annotator "NA"]
[PlyCount "93"]
[EventDate "2021.12.29"]
[EventType "swiss"]
[EventCountry "POL"]
[Tiebreak "Cut1 Buchholz"]
[SourceTitle "playchess.com"]
[Source "ChessBase"]
[SourceQuality "1"]
[TimeControl "180+2"]

1. e4 {[%emt 0:00:01]} c5 {[%emt 0:00:01]} 2. Ne2 {[%emt 0:00:01]} d6 {[%emt 0:
00:01]} 3. g3 {[%emt 0:00:01]} g6 {[%emt 0:00:02]} 4. Bg2 {[%emt 0:00:01]} Bg7
{[%emt 0:00:01]} 5. O-O {[%emt 0:00:02]} Nc6 {[%emt 0:00:01]} 6. c3 {[%emt 0:
00:02]} e5 {[%emt 0:00:04]} 7. h3 {[%emt 0:00:04]} Nge7 {[%emt 0:00:02]} 8. d3
{[%emt 0:00:02]} O-O {[%emt 0:00:02]} 9. Be3 {[%emt 0:00:02]} Be6 {[%emt 0:00:
03]} 10. Nd2 {[%emt 0:00:08]} Qd7 {[%emt 0:00:08]} 11. Kh2 {[%emt 0:00:03]} f5
{[%emt 0:00:01]} 12. exf5 {[%emt 0:00:12]} Nxf5 {[%emt 0:00:06]} 13. Ne4 {
[%emt 0:00:11]} h6 {[%emt 0:00:15]} 14. Qd2 {[%emt 0:00:12]} b6 {[%emt 0:00:06]
} 15. g4 {[%emt 0:00:02]} Nxe3 {[%emt 0:00:02]} 16. fxe3 {[%emt 0:00:01]} d5 {
[%emt 0:00:01]} 17. N4g3 {[%emt 0:00:01]} Rxf1 {[%emt 0:00:07]} 18. Rxf1 {
[%emt 0:00:02]} Rf8 {[%emt 0:00:01]} 19. Rxf8+ {[%emt 0:00:08]} Bxf8 {[%emt 0:
00:02]} 20. d4 {[%emt 0:00:02]} cxd4 {[%emt 0:00:08]} 21. exd4 {[%emt 0:00:04]}
e4 {[%emt 0:00:04]} 22. Nf4 {[%emt 0:00:14]} Bf7 {[%emt 0:00:01]} 23. Kg1 {
[%emt 0:00:06]} Na5 {[%emt 0:00:13]} 24. b3 {[%emt 0:00:03]} Nc6 {[%emt 0:00:
09]} 25. Nfe2 {[%emt 0:00:14]} Kg7 {[%emt 0:00:34]} 26. Qe3 {[%emt 0:00:08]}
Be7 {[%emt 0:00:02]} 27. c4 {[%emt 0:00:13]} Bg5 {[%emt 0:00:11]} 28. Qc3 {
[%emt 0:00:01]} e3 {[%emt 0:00:15]} 29. Nf1 {[%emt 0:00:23]} Bf6 {[%emt 0:00:
09]} 30. Nxe3 {[%emt 0:00:21]} dxc4 {[%emt 0:00:04]} 31. Bxc6 {[%emt 0:00:02]}
Qxc6 {[%emt 0:00:01]} 32. bxc4 {[%emt 0:00:01]} Qf3 {[%emt 0:00:01]} 33. Nf5+ {
[%emt 0:00:14]} gxf5 {[%emt 0:00:23]} 34. Qxf3 {[%emt 0:00:02]} Bxc4 {[%emt 0:
00:02]} 35. gxf5 {[%emt 0:00:04]} b5 {[%emt 0:00:05]} 36. d5 {[%emt 0:00:03]}
Kf7 {[%emt 0:00:02]} 37. Nf4 {[%emt 0:00:03]} Bd4+ {[%emt 0:00:01]} 38. Kg2 {
[%emt 0:00:04]} Be5 {[%emt 0:00:12]} 39. Qe4 {[%emt 0:00:04]} Bxf4 {[%emt 0:00:
08]} 40. Qxf4 {[%emt 0:00:01]} Bxd5+ {[%emt 0:00:01]} 41. Kg3 {[%emt 0:00:00]}
Bxa2 {[%emt 0:00:02]} 42. Qc7+ {[%emt 0:00:06]} Kf6 {[%emt 0:00:02]} 43. Qxa7 {
[%emt 0:00:05]} Bc4 {[%emt 0:00:02]} 44. Qc5 {[%emt 0:00:07]} Kg5 {[%emt 0:00:
10]} 45. h4+ {[%emt 0:00:03]} Kf6 {[%emt 0:00:01]} 46. Kf4 {[%emt 0:00:01]} Kf7
{[%emt 0:00:05]} 47. Ke5 {[%emt 0:00:03]} 1-0

[Event "FIDE Women World Blitz 2021"]
[Site "Warsaw"]
[Date "2021.12.29"]
[Round "5.18"]
[White "Dylag, Emilia"]
[Black "Efimenko, Maria"]
[Result "0-1"]
[ECO "E60"]
[WhiteElo "1863"]
[BlackElo "2207"]
[Annotator "NA"]
[PlyCount "52"]
[EventDate "2021.12.29"]
[EventType "swiss"]
[EventCountry "POL"]
[Tiebreak "Cut1 Buchholz"]
[SourceTitle "playchess.com"]
[Source "ChessBase"]
[SourceQuality "1"]
[TimeControl "180+2"]

1. d4 {[%emt 0:00:01]} d6 {[%emt 0:00:00]} 2. Nf3 {[%emt 0:00:02]} g6 {[%emt 0:
00:02]} 3. c4 {[%emt 0:00:04]} Nf6 {[%emt 0:00:02]} 4. g3 {[%emt 0:00:02]} Bf5
{[%emt 0:00:04]} 5. Bg2 {[%emt 0:00:04]} c6 {[%emt 0:00:01]} 6. O-O {[%emt 0:
00:03]} Bg7 {[%emt 0:00:01]} 7. Nc3 {[%emt 0:00:02]} Ne4 {[%emt 0:00:01]} 8.
Nd2 {[%emt 0:00:48]} Nxc3 {[%emt 0:00:03]} 9. bxc3 {[%emt 0:00:02]} O-O {
[%emt 0:00:04]} 10. e4 {[%emt 0:00:03]} Be6 {[%emt 0:00:01]} 11. Rb1 {[%emt 0:
00:03]} Qc8 {[%emt 0:00:09]} 12. f4 {[%emt 0:00:05]} c5 {[%emt 0:00:31]} 13. e5
{[%emt 0:00:11]} Nc6 {[%emt 0:00:05]} 14. d5 {[%emt 0:00:02]} Bg4 {[%emt 0:00:
01]} 15. Qa4 {[%emt 0:00:13]} Nd8 {[%emt 0:00:04]} 16. Re1 {[%emt 0:00:18]} b6
{[%emt 0:00:36]} 17. Qc2 {[%emt 0:00:26]} Nb7 {[%emt 0:00:06]} 18. Qd3 {
[%emt 0:00:26]} Qc7 {[%emt 0:00:30]} 19. h3 {[%emt 0:00:05]} Bf5 {[%emt 0:00:
01]} 20. Be4 {[%emt 0:00:11]} Bxh3 {[%emt 0:00:07]} 21. Nf3 {[%emt 0:00:18]}
dxe5 {[%emt 0:00:06]} 22. fxe5 {[%emt 0:00:02]} f5 {[%emt 0:00:03]} 23. d6 {
[%emt 0:00:11]} fxe4 {[%emt 0:00:07]} 24. Qd5+ {[%emt 0:00:04]} e6 {[%emt 0:00:
00]} 25. Qxe4 {[%emt 0:00:02]} Qf7 {[%emt 0:00:05]} 26. Be3 {[%emt 0:00:03]}
Qxf3 {[%emt 0:00:02]} 0-1